Publisher Label,Publisher URI,"Payment Date","Organisational Unit","Beneficiary Name","Purpose","Amount (£)","Irrecoverable VAT Amount (£)","Merchant Category"
"Wolverhampton City Council","http://opendatacommunities.org/id/metropolitan-district-council/wolverhampton","01/05/2015","Property and legal fees","SGH MARTINEAU LLP","Property Management - Legal Expenses","112,602.81","0","8111"
"Wolverhampton City Council","http://opendatacommunities.org/id/metropolitan-district-council/wolverhampton","01/05/2015","Governance","WaterCoolers Direct.com Ltd","Water Charges","2,549.00","0","7299"
"Wolverhampton City Council","http://opendatacommunities.org/id/metropolitan-district-council/wolverhampton","01/07/2015","Investments Fund Account","LINEDATA LIMITED","Computing - Maint Agreements","63,093.14","0","5045"
"Wolverhampton City Council","http://opendatacommunities.org/id/metropolitan-district-council/wolverhampton","01/09/2015","Pension Operations","QAS LIMITED T/A EXPERIAN QAS","Computing - Maint Agreements","2,246.57","0","5045"
"Wolverhampton City Council","http://opendatacommunities.org/id/metropolitan-district-council/wolverhampton","02/06/2015","Governance","ADARE LTD","Printing","1,996.96","0","4812"
"Wolverhampton City Council","http://opendatacommunities.org/id/metropolitan-district-council/wolverhampton","02/09/2015","Financial Services","MERCER LIMITED","Services - Professional Fees","59,872.00","0","6012"
"Wolverhampton City Council","http://opendatacommunities.org/id/metropolitan-district-council/wolverhampton","02/09/2015","Property and legal fees","Shakespeare Martineau LLP","Property Management - Legal Expenses","807","0","8111"
"Wolverhampton City Council","http://opendatacommunities.org/id/metropolitan-district-council/wolverhampton","02/09/2015","Pension Operations","UK MAIL LTD/BUSINESSPOST INTERNATNL.","Comms - Postage","638.87","0","4215"
"Wolverhampton City Council","http://opendatacommunities.org/id/metropolitan-district-council/wolverhampton","02/09/2015","Financial Services","Kaplan Financial","Training Expenses","944.17","0","8299"
"Wolverhampton City Council","http://opendatacommunities.org/id/metropolitan-district-council/wolverhampton","02/09/2015","Pension Operations","Yoo","Agency Staff","1,825.26","0","7361"
"Wolverhampton City Council","http://opendatacommunities.org/id/metropolitan-district-council/wolverhampton","02/10/2015","Pension Operations","ROYAL MAIL GROUP PLC","Comms - Postage","1,060.54","0","9402"
"Wolverhampton City Council","http://opendatacommunities.org/id/metropolitan-district-council/wolverhampton","02/11/2015","Financial Services","PRICE WATERHOUSE COOPERS","Services - Professional Fees","48,618.00","0","8931"
"Wolverhampton City Council","http://opendatacommunities.org/id/metropolitan-district-council/wolverhampton","03/07/2015","Investment - Revenue","THE WORLD MARKETS COMPANY PLC","Services - Professional Fees","1,468.00","0","8999"
"Wolverhampton City Council","http://opendatacommunities.org/id/metropolitan-district-council/wolverhampton","03/08/2015","Governance","Kaizen Consultants","Printing","587","0","2741"
"Wolverhampton City Council","http://opendatacommunities.org/id/metropolitan-district-council/wolverhampton","03/09/2015","Pension Operations","Yoo","Agency Staff","621.67","0","7361"
"Wolverhampton City Council","http://opendatacommunities.org/id/metropolitan-district-council/wolverhampton","04/06/2015","Investment - Revenue","FTSE INTERNATIONAL LTD","Services - Professional Fees","9,010.00","0","5045"
"Wolverhampton City Council","http://opendatacommunities.org/id/metropolitan-district-council/wolverhampton","04/08/2015","Pension Operations","UK MAIL LTD/BUSINESSPOST INTERNATNL.","Comms - Postage","606.84","0","4215"
"Wolverhampton City Council","http://opendatacommunities.org/id/metropolitan-district-council/wolverhampton","04/08/2015","Property and legal fees","Savills (UK) Limited","Property Management - Supplies & Services - General","5,944.62","0","8999"
"Wolverhampton City Council","http://opendatacommunities.org/id/metropolitan-district-council/wolverhampton","04/08/2015","Pension Operations","SF Recruitment Ltd","Agency Staff","511.71","0","7361"
"Wolverhampton City Council","http://opendatacommunities.org/id/metropolitan-district-council/wolverhampton","05/08/2015","Governance","BIRMINGHAM CITY COUNCIL","Comms - Postage","2,411.07","0","9399"
"Wolverhampton City Council","http://opendatacommunities.org/id/metropolitan-district-council/wolverhampton","05/08/2015","Pension Operations","Eames Consulting Group LLP","Staff Advertising Costs","14,130.00","0","8299"
"Wolverhampton City Council","http://opendatacommunities.org/id/metropolitan-district-council/wolverhampton","05/10/2015","Investment - Revenue","THE WORLD MARKETS COMPANY PLC","Services - Professional Fees","1,468.00","0","8999"
"Wolverhampton City Council","http://opendatacommunities.org/id/metropolitan-district-council/wolverhampton","06/05/2015","Pension Operations","UK MAIL LTD/BUSINESSPOST INTERNATNL.","Comms - Postage","539.96","0","4215"
"Wolverhampton City Council","http://opendatacommunities.org/id/metropolitan-district-council/wolverhampton","07/04/2015","Pension Operations","SQUIRE,SANDERS & DEMPSEY (UK) LLP","Services - Professional Fees","965","0","8111"
"Wolverhampton City Council","http://opendatacommunities.org/id/metropolitan-district-council/wolverhampton","07/08/2015","Pension Operations","CIVICA UK LIMITED","Computing - Maint Agreements","15,000.00","0","5045"
"Wolverhampton City Council","http://opendatacommunities.org/id/metropolitan-district-council/wolverhampton","07/08/2015","Governance","ROYAL MAIL GROUP PLC","Comms - Postage","612.41","0","9402"
"Wolverhampton City Council","http://opendatacommunities.org/id/metropolitan-district-council/wolverhampton","07/08/2015","Governance","Kaizen Consultants","Printing","540","0","2741"
"Wolverhampton City Council","http://opendatacommunities.org/id/metropolitan-district-council/wolverhampton","07/09/2015","Financial Services","PRI ASSOCIAION LTD(GLOBAL COMPACT)","Conference Expenses","900","0","8999"
"Wolverhampton City Council","http://opendatacommunities.org/id/metropolitan-district-council/wolverhampton","08/09/2015","Pension Operations","Accurate Data Services Limited","Computing - Maint Agreements","2,352.35","0","5045"
"Wolverhampton City Council","http://opendatacommunities.org/id/metropolitan-district-council/wolverhampton","09/06/2015","Property and legal fees","KONA","Property Management - Management Expenses","2,250.00","0","8999"
"Wolverhampton City Council","http://opendatacommunities.org/id/metropolitan-district-council/wolverhampton","09/06/2015","Investments Fund Account","BARRA INTERNATIONAL LIMITED","Computing - Maint Agreements","56,824.94","0","5045"
"Wolverhampton City Council","http://opendatacommunities.org/id/metropolitan-district-council/wolverhampton","09/06/2015","Financial Services","MERCER LIMITED","Services - Professional Fees","89,008.00","0","6012"
"Wolverhampton City Council","http://opendatacommunities.org/id/metropolitan-district-council/wolverhampton","09/07/2015","Pension Operations","QAS LIMITED T/A EXPERIAN QAS","Computing - Maint Agreements","2,050.00","0","5045"
"Wolverhampton City Council","http://opendatacommunities.org/id/metropolitan-district-council/wolverhampton","01/12/2016","Pension Operations","CIVICA UK LIMITED","Computing - Maint Agreements","4,750.00","0","5045"
"Wolverhampton City Council","http://opendatacommunities.org/id/metropolitan-district-council/wolverhampton","15/01/2016","Financial Services","HYMANS ROBERTSON LLP","Services - Professional Fees","10,000.00","0","6012"
"Wolverhampton City Council","http://opendatacommunities.org/id/metropolitan-district-council/wolverhampton","01/06/2016","Investment - Revenue","THE WORLD MARKETS COMPANY PLC","Services - Professional Fees","1,466.00","0","8999"
"Wolverhampton City Council","http://opendatacommunities.org/id/metropolitan-district-council/wolverhampton","01/06/2016","Pension Operations","Barnett Waddingham LLP","Services - Professional Fees","15,622.50","0","6012"
"Wolverhampton City Council","http://opendatacommunities.org/id/metropolitan-district-council/wolverhampton","10/06/2015","Governance","SGS UNITED KINGDOM LTD","Services - Professional Fees","1,398.65","0","8999"
"Wolverhampton City Council","http://opendatacommunities.org/id/metropolitan-district-council/wolverhampton","10/06/2015","Investment - Revenue","Portfolio Evaluation Limited","Services - Professional Fees","5,287.50","0","8999"
"Wolverhampton City Council","http://opendatacommunities.org/id/metropolitan-district-council/wolverhampton","10/06/2015","Governance","ROYAL MAIL GROUP PLC","Comms - Postage","527.68","0","9402"
"Wolverhampton City Council","http://opendatacommunities.org/id/metropolitan-district-council/wolverhampton","10/09/2015","Pension Operations","BIRMINGHAM CITY COUNCIL","Comms - Postage","2,758.35","0","9399"
"Wolverhampton City Council","http://opendatacommunities.org/id/metropolitan-district-council/wolverhampton","10/09/2015","Pension Operations","ROYAL MAIL GROUP PLC","Comms - Postage","1,694.61","0","9402"
"Wolverhampton City Council","http://opendatacommunities.org/id/metropolitan-district-council/wolverhampton","10/09/2015","Property and legal fees","DLA Piper UK LLP","Property Management - Management Expenses","5,481.00","0","8111"
"Wolverhampton City Council","http://opendatacommunities.org/id/metropolitan-district-council/wolverhampton","13/10/2015","Pension Operations","BIRMINGHAM CITY COUNCIL","Comms - Postage","1,936.09","0","9399"
"Wolverhampton City Council","http://opendatacommunities.org/id/metropolitan-district-council/wolverhampton","14/10/2015","Financial Services","Duncan Cunningham Icon Reporting Services","Services - Consultants","1,890.83","0","5045"
"Wolverhampton City Council","http://opendatacommunities.org/id/metropolitan-district-council/wolverhampton","15/10/2015","Pension Operations","Barnett Waddingham LLP","Services - Professional Fees","18,065.00","0","6012"
"Wolverhampton City Council","http://opendatacommunities.org/id/metropolitan-district-council/wolverhampton","15/10/2015","Financial Services","MERCER LIMITED","Services - Professional Fees","27,845.00","0","6012"
"Wolverhampton City Council","http://opendatacommunities.org/id/metropolitan-district-council/wolverhampton","19/10/2015","Property and legal fees","DLA Piper UK LLP","Property Management - Management Expenses","9,954.10","0","8111"
"Wolverhampton City Council","http://opendatacommunities.org/id/metropolitan-district-council/wolverhampton","20/10/2015","Governance","GLJ Contracts Ltd","R&M - Departmental planned (external)","2,050.00","0","1520"
"Wolverhampton City Council","http://opendatacommunities.org/id/metropolitan-district-council/wolverhampton","23/10/2015","Governance","ROYAL MAIL GROUP PLC","Comms - Postage","1,056.43","0","9402"
"Wolverhampton City Council","http://opendatacommunities.org/id/metropolitan-district-council/wolverhampton","23/10/2015","Pension Operations","HAYS SPECIALIST RECRUITMENT LTD","Agency Staff","4,534.56","0","7361"
"Wolverhampton City Council","http://opendatacommunities.org/id/metropolitan-district-council/wolverhampton","28/10/2015","Financial Services","Duncan Cunningham Icon Reporting Services","Services - Consultants","1,297.99","0","5045"
"Wolverhampton City Council","http://opendatacommunities.org/id/metropolitan-district-council/wolverhampton","10/09/2015","Executive","Local Government Association","Subscriptions","6,800.00","0","9399"
"Wolverhampton City Council","http://opendatacommunities.org/id/metropolitan-district-council/wolverhampton","10/09/2015","Property and legal fees","Shakespeare Martineau LLP","Property Management - Legal Expenses","33,977.18","0","8111"
"Wolverhampton City Council","http://opendatacommunities.org/id/metropolitan-district-council/wolverhampton","10/09/2015","Investment - Revenue","HSBC BANK PLC/HSBC SECURITY SERVICES","Services - Professional Fees","2,691.77","0","6012"
"Wolverhampton City Council","http://opendatacommunities.org/id/metropolitan-district-council/wolverhampton","10/09/2015","Governance","ADARE LTD","Comms - Postage","4,939.70","0","4812"
"Wolverhampton City Council","http://opendatacommunities.org/id/metropolitan-district-council/wolverhampton","11/08/2015","Investments Fund Account","LONDON STOCK EXCHANGE PLC","Services - General Licences","554.52","0","6012"
"Wolverhampton City Council","http://opendatacommunities.org/id/metropolitan-district-council/wolverhampton","11/11/2015","Governance","ADARE LTD","Comms - Postage","9,067.89","0","4812"
"Wolverhampton City Council","http://opendatacommunities.org/id/metropolitan-district-council/wolverhampton","11/11/2015","Investments Fund Account","LONDON STOCK EXCHANGE PLC","Services - General Licences","554.52","0","6012"
"Wolverhampton City Council","http://opendatacommunities.org/id/metropolitan-district-council/wolverhampton","11/11/2015","Governance","Thompson Group Services","R&M - Departmental planned (external)","894.4","0","1520"
"Wolverhampton City Council","http://opendatacommunities.org/id/metropolitan-district-council/wolverhampton","15/11/2015","Financial Services","Birmingham City University","Training Expenses","1,100.00","0","8299"
"Wolverhampton City Council","http://opendatacommunities.org/id/metropolitan-district-council/wolverhampton","16/11/2015","Property and legal fees","DLA Piper UK LLP","Property Management - Management Expenses","2,801.00","0","8111"
"Wolverhampton City Council","http://opendatacommunities.org/id/metropolitan-district-council/wolverhampton","11/02/2015","Financial Services","HYMANS ROBERTSON LLP","Services - Professional Fees","6,883.00","0","6012"
"Wolverhampton City Council","http://opendatacommunities.org/id/metropolitan-district-council/wolverhampton","11/02/2015","Governance","ADARE LTD","Comms - Postage","1,929.49","0","4812"
"Wolverhampton City Council","http://opendatacommunities.org/id/metropolitan-district-council/wolverhampton","20/11/2015","Financial Services","HYMANS ROBERTSON LLP","Services - Professional Fees","5,833.00","0","6012"
"Wolverhampton City Council","http://opendatacommunities.org/id/metropolitan-district-council/wolverhampton","25/11/2015","Property and legal fees","Shakespeare Martineau LLP","Property Management - Legal Expenses","2,500.00","0","8111"
"Wolverhampton City Council","http://opendatacommunities.org/id/metropolitan-district-council/wolverhampton","11/03/2015","Pension Operations","UK MAIL LTD/BUSINESSPOST INTERNATNL.","Comms - Postage","2,108.48","0","4215"
"Wolverhampton City Council","http://opendatacommunities.org/id/metropolitan-district-council/wolverhampton","11/03/2015","Governance","ADARE LTD","Comms - Postage","2,000.35","0","4812"
"Wolverhampton City Council","http://opendatacommunities.org/id/metropolitan-district-council/wolverhampton","11/04/2015","Pension Operations","CIVICA UK LIMITED","Computing - Maint Agreements","1,900.00","0","5045"
"Wolverhampton City Council","http://opendatacommunities.org/id/metropolitan-district-council/wolverhampton","11/06/2015","Governance","LexisNexis","Computing - Consumables","6,436.00","0","5045"
"Wolverhampton City Council","http://opendatacommunities.org/id/metropolitan-district-council/wolverhampton","11/09/2015","Pension Operations","CIVICA UK LIMITED","Computing - Maint Agreements","1,462.50","0","5045"
"Wolverhampton City Council","http://opendatacommunities.org/id/metropolitan-district-council/wolverhampton","11/09/2015","Governance","KRCS GROUP PLC","Computing - Purchase of Hardware","684.35","0","5072"
"Wolverhampton City Council","http://opendatacommunities.org/id/metropolitan-district-council/wolverhampton","12/05/2015","Pension Operations","CIPFA BUSINESS LIMITED","Services - Professional Fees","2,625.00","0","8999"
"Wolverhampton City Council","http://opendatacommunities.org/id/metropolitan-district-council/wolverhampton","12/06/2015","Governance","GBS Corporate Training","Training Expenses","1,101.95","0","8299"
"Wolverhampton City Council","http://opendatacommunities.org/id/metropolitan-district-council/wolverhampton","12/06/2015","Governance","Dilys Jones Associates Ltd","Training Expenses","4,125.00","0","8299"
"Wolverhampton City Council","http://opendatacommunities.org/id/metropolitan-district-council/wolverhampton","12/06/2015","Pension Operations","SF Recruitment Ltd","Agency Staff","2,281.96","0","8999"
"Wolverhampton City Council","http://opendatacommunities.org/id/metropolitan-district-council/wolverhampton","12/08/2015","Property and legal fees","Shakespeare Martineau LLP","Property Management - Legal Expenses","26,731.00","0","8111"
"Wolverhampton City Council","http://opendatacommunities.org/id/metropolitan-district-council/wolverhampton","12/08/2015","Property and legal fees","AMEC Enviroment & Infrastructure","Property Management - Legal Expenses","677","0","8999"
"Wolverhampton City Council","http://opendatacommunities.org/id/metropolitan-district-council/wolverhampton","12/08/2015","Governance","PENtag Ltd","Training Expenses","1,575.00","0","8299"
"Wolverhampton City Council","http://opendatacommunities.org/id/metropolitan-district-council/wolverhampton","12/08/2015","Governance","Sec-1 Limited","Services - Professional Fees","1,901.80","0","8999"
"Wolverhampton City Council","http://opendatacommunities.org/id/metropolitan-district-council/wolverhampton","12/01/2015","Pension Operations","UK MAIL LTD/BUSINESSPOST INTERNATNL.","Comms - Postage","693.1","0","4215"
"Wolverhampton City Council","http://opendatacommunities.org/id/metropolitan-district-council/wolverhampton","12/11/2015","Financial Services","MERCER LIMITED","Services - Professional Fees","3,075.00","0","6012"
"Wolverhampton City Council","http://opendatacommunities.org/id/metropolitan-district-council/wolverhampton","12/11/2015","Investment - Revenue","Portfolio Evalutaion Limited","Services - Professional Fees","5,287.50","0","8999"
"Wolverhampton City Council","http://opendatacommunities.org/id/metropolitan-district-council/wolverhampton","14/12/2015","Governance","The Hay Group Management Limited","Services - Professional Fees","500","0","8999"
"Wolverhampton City Council","http://opendatacommunities.org/id/metropolitan-district-council/wolverhampton","14/12/2015","Financial Services","The Hay Group Management Limited","Services - Professional Fees","500","0","8999"
"Wolverhampton City Council","http://opendatacommunities.org/id/metropolitan-district-council/wolverhampton","17/12/2015","Governance","WILLIAM GOUGH LTD","R&M - Departmental response (Internal)","506.98","0","1520"
"Wolverhampton City Council","http://opendatacommunities.org/id/metropolitan-district-council/wolverhampton","17/12/2015","Governance","Kaizen Consultants","Stationery","734","0","2741"
"Wolverhampton City Council","http://opendatacommunities.org/id/metropolitan-district-council/wolverhampton","18/12/2015","Investment - Revenue","HYMANS ROBERTSON LLP","Services - Professional Fees","5,833.00","0","6012"
"Wolverhampton City Council","http://opendatacommunities.org/id/metropolitan-district-council/wolverhampton","18/12/2015","Pension Operations","BIRMINGHAM CITY COUNCIL","Comms - Postage","2,957.38","0","9399"
"Wolverhampton City Council","http://opendatacommunities.org/id/metropolitan-district-council/wolverhampton","21/12/2015","Pension Operations","BIRMINGHAM CITY COUNCIL","Comms - Postage","2,580.39","0","9399"
"Wolverhampton City Council","http://opendatacommunities.org/id/metropolitan-district-council/wolverhampton","22/12/2015","Investment - Revenue","HSBC BANK PLC/HSBC SECURITY SERVICES","Services - Professional Fees","3,221.75","0","6012"
"Wolverhampton City Council","http://opendatacommunities.org/id/metropolitan-district-council/wolverhampton","23/12/2015","Governance","Kaizen Consultants","Stationery","642","0","2741"
"Wolverhampton City Council","http://opendatacommunities.org/id/metropolitan-district-council/wolverhampton","23/12/2015","Pension Operations","Barnett Waddingham LLP","Services - Professional Fees","35,580.00","0","6012"
"Wolverhampton City Council","http://opendatacommunities.org/id/metropolitan-district-council/wolverhampton","31/12/2015","Property and legal fees","SQUIRE,SANDERS & DEMPSEY (UK) LLP","Property Management - Legal Expenses","500","0","8111"
"Wolverhampton City Council","http://opendatacommunities.org/id/metropolitan-district-council/wolverhampton","31/12/2015","Governance","Kaizen Consultants","Stationery","1,089.00","0","2741"
"Wolverhampton City Council","http://opendatacommunities.org/id/metropolitan-district-council/wolverhampton","31/12/2015","Pension Operations","Barnett Waddingham LLP","Services - Professional Fees","52,210.00","0","6012"
"Wolverhampton City Council","http://opendatacommunities.org/id/metropolitan-district-council/wolverhampton","31/12/2015","Investments Fund Account","LINEDATA LIMITED","Computing - Maint Agreements","60,646.74","0","5045"
"Wolverhampton City Council","http://opendatacommunities.org/id/metropolitan-district-council/wolverhampton","12/09/2015","Property and legal fees","Shakespeare Martineau LLP","Property Management - Legal Expenses","81,908.77","0","8111"
"Wolverhampton City Council","http://opendatacommunities.org/id/metropolitan-district-council/wolverhampton","13/05/2015","Pension Operations","Merrill Legal Solutions","Services - Professional Fees","1,985.00","0","8111"
"Wolverhampton City Council","http://opendatacommunities.org/id/metropolitan-district-council/wolverhampton","13/05/2015","Pension Operations","CIVICA UK LIMITED","Computing - Maint Agreements","15,000.00","0","5045"
"Wolverhampton City Council","http://opendatacommunities.org/id/metropolitan-district-council/wolverhampton","13/08/2015","Financial Services","HYMANS ROBERTSON LLP","Services - Professional Fees","5,833.00","0","6012"
"Wolverhampton City Council","http://opendatacommunities.org/id/metropolitan-district-council/wolverhampton","13/08/2015","Investments Fund Account","NFU Mutual","Property Management - Insurances","8,961.37","0","6399"
"Wolverhampton City Council","http://opendatacommunities.org/id/metropolitan-district-council/wolverhampton","13/10/2015","Governance","Kaizen Consultants","Stationery","1,373.25","0","2741"
"Wolverhampton City Council","http://opendatacommunities.org/id/metropolitan-district-council/wolverhampton","14/05/2015","Governance","Deloitte LLP","Services - Professional Fees","5,345.00","0","8999"
"Wolverhampton City Council","http://opendatacommunities.org/id/metropolitan-district-council/wolverhampton","14/07/2015","Governance","KRCS GROUP PLC","Computing - Maint Agreements","2,405.00","0","5072"
"Wolverhampton City Council","http://opendatacommunities.org/id/metropolitan-district-council/wolverhampton","14/08/2015","Governance","Local Authority Pension Fund Forum","Subscriptions","8,250.00","0","8999"
"Wolverhampton City Council","http://opendatacommunities.org/id/metropolitan-district-council/wolverhampton","15/04/2015","Financial Services","LINEDATA LIMITED","Computing - Maint Agreements","61,710.82","0","5045"
"Wolverhampton City Council","http://opendatacommunities.org/id/metropolitan-district-council/wolverhampton","15/04/2015","Investments Fund Account","LINEDATA LIMITED","Services - Consultants","541.91","0","5045"
"Wolverhampton City Council","http://opendatacommunities.org/id/metropolitan-district-council/wolverhampton","15/04/2015","Financial Services","MERCER LIMITED","Services - Professional Fees","51,123.00","0","6012"
"Wolverhampton City Council","http://opendatacommunities.org/id/metropolitan-district-council/wolverhampton","15/04/2015","Investments Fund Account","PRI ASSOCIAION LTD(GLOBAL COMPACT)","Subscriptions","7,720.00","0","8999"
"Wolverhampton City Council","http://opendatacommunities.org/id/metropolitan-district-council/wolverhampton","15/04/2015","Pension Operations","KBW","Services - Professional Fees","144,320.00","0","8111"
"Wolverhampton City Council","http://opendatacommunities.org/id/metropolitan-district-council/wolverhampton","15/04/2015","Pension Operations","KBW","Services - Professional Fees","62,955.00","0","8111"
"Wolverhampton City Council","http://opendatacommunities.org/id/metropolitan-district-council/wolverhampton","15/05/2015","Financial Services","Duncan Cunningham Icon Reporting Services","Services - Consultants","3,205.49","0","8999"
"Wolverhampton City Council","http://opendatacommunities.org/id/metropolitan-district-council/wolverhampton","15/05/2015","Governance","ROYAL MAIL GROUP PLC","Comms - Postage","2,012.01","0","9402"
"Wolverhampton City Council","http://opendatacommunities.org/id/metropolitan-district-council/wolverhampton","15/06/2015","Financial Services","Agilisys Ltd","Computing - Maint Agreements","21,275.00","0","5045"
"Wolverhampton City Council","http://opendatacommunities.org/id/metropolitan-district-council/wolverhampton","15/06/2015","Governance","Conference Aston","Services - Professional Fees","600","0","8999"
"Wolverhampton City Council","http://opendatacommunities.org/id/metropolitan-district-council/wolverhampton","16/07/2015","Financial Services","HYMANS ROBERTSON LLP","Services - Professional Fees","8,353.00","0","6012"
"Wolverhampton City Council","http://opendatacommunities.org/id/metropolitan-district-council/wolverhampton","16/07/2015","Governance","ROYAL MAIL GROUP PLC","Comms - Postage","997.51","0","9402"
"Wolverhampton City Council","http://opendatacommunities.org/id/metropolitan-district-council/wolverhampton","16/07/2015","Pension Operations","Yoo","Agency Staff","1,201.65","0","7361"
"Wolverhampton City Council","http://opendatacommunities.org/id/metropolitan-district-council/wolverhampton","16/07/2015","Pension Operations","SF Recruitment Ltd","Agency Staff","1,023.42","0","7361"
"Wolverhampton City Council","http://opendatacommunities.org/id/metropolitan-district-council/wolverhampton","16/10/2015","Financial Services","MERCER LIMITED","Services - Professional Fees","22,185.00","0","6012"
"Wolverhampton City Council","http://opendatacommunities.org/id/metropolitan-district-council/wolverhampton","16/10/2015","Property and legal fees","Britwind","Property Management - Management Expenses","4,506.00","0","8111"
"Wolverhampton City Council","http://opendatacommunities.org/id/metropolitan-district-council/wolverhampton","17/06/2015","Financial Services","Duncan Cunningham Icon Reporting Services","Services - Consultants","3,813.35","0","8999"
"Wolverhampton City Council","http://opendatacommunities.org/id/metropolitan-district-council/wolverhampton","17/06/2015","Investment - Revenue","Travers Smith LLP","Services - Professional Fees","3,714.67","0","8111"
"Wolverhampton City Council","http://opendatacommunities.org/id/metropolitan-district-council/wolverhampton","17/06/2015","Governance","PENtag Ltd","Training Expenses","1,450.00","0","8299"
"Wolverhampton City Council","http://opendatacommunities.org/id/metropolitan-district-council/wolverhampton","17/06/2015","Pension Operations","UK MAIL LTD/BUSINESSPOST INTERNATNL.","Comms - Postage","21,746.64","0","4215"
"Wolverhampton City Council","http://opendatacommunities.org/id/metropolitan-district-council/wolverhampton","17/06/2015","Financial Services","Kaplan Financial","Training Expenses","744.99","0","8299"
"Wolverhampton City Council","http://opendatacommunities.org/id/metropolitan-district-council/wolverhampton","17/06/2015","Pension Operations","CIVICA UK LIMITED","Computing - Maint Agreements","1,900.00","0","5045"
"Wolverhampton City Council","http://opendatacommunities.org/id/metropolitan-district-council/wolverhampton","17/06/2015","Pension Operations","CIPFA BUSINESS LIMITED","Services - Professional Fees","680","0","8999"
"Wolverhampton City Council","http://opendatacommunities.org/id/metropolitan-district-council/wolverhampton","17/06/2015","Investment - Revenue","HSBC BANK PLC/HSBC SECURITY SERVICES","Services - Professional Fees","2,379.76","0","6012"
"Wolverhampton City Council","http://opendatacommunities.org/id/metropolitan-district-council/wolverhampton","17/07/2015","Governance","Kaizen Consultants","Printing","734","0","2741"
"Wolverhampton City Council","http://opendatacommunities.org/id/metropolitan-district-council/wolverhampton","17/08/2015","Investment - Revenue","HSBC BANK PLC/HSBC SECURITY SERVICES","Services - Professional Fees","2,691.77","0","6012"
"Wolverhampton City Council","http://opendatacommunities.org/id/metropolitan-district-council/wolverhampton","17/08/2015","Governance","ROYAL MAIL GROUP PLC","Comms - Postage","927.6","0","9402"
"Wolverhampton City Council","http://opendatacommunities.org/id/metropolitan-district-council/wolverhampton","18/05/2015","Pension Operations","Pension Management Institute","Training Expenses","595","0","8299"
"Wolverhampton City Council","http://opendatacommunities.org/id/metropolitan-district-council/wolverhampton","18/06/2015","Property and legal fees","QUINN EMANUEL TRIAL LAWYERS","Services - Professional Fees","3,200.00","0","8111"
"Wolverhampton City Council","http://opendatacommunities.org/id/metropolitan-district-council/wolverhampton","18/06/2015","Property and legal fees","SQUIRE,SANDERS & DEMPSEY (UK) LLP","Property Management - Legal Expenses","3,500.00","0","8111"
"Wolverhampton City Council","http://opendatacommunities.org/id/metropolitan-district-council/wolverhampton","18/09/2015","Pension Operations","BIRMINGHAM CITY COUNCIL","Comms - Postage","3,136.19","0","9399"
"Wolverhampton City Council","http://opendatacommunities.org/id/metropolitan-district-council/wolverhampton","19/05/2015","Financial Services","CIPFA BUSINESS LIMITED","Subscriptions","5,880.00","0","8999"
"Wolverhampton City Council","http://opendatacommunities.org/id/metropolitan-district-council/wolverhampton","20/05/2015","Investment - Revenue","HSBC BANK PLC/HSBC SECURITY SERVICES","Services - Professional Fees","2,658.33","0","6012"
"Wolverhampton City Council","http://opendatacommunities.org/id/metropolitan-district-council/wolverhampton","20/05/2015","Investment - Revenue","HYMANS ROBERTSON LLP","Services - Professional Fees","5,318.00","0","6012"
"Wolverhampton City Council","http://opendatacommunities.org/id/metropolitan-district-council/wolverhampton","20/08/2015","Pension Operations","CIPFA BUSINESS LIMITED","Services - Professional Fees","2,625.00","0","8999"
"Wolverhampton City Council","http://opendatacommunities.org/id/metropolitan-district-council/wolverhampton","20/10/2015","Investment - Revenue","HSBC BANK PLC/HSBC SECURITY SERVICES","Services - Professional Fees","2,691.77","0","6012"
"Wolverhampton City Council","http://opendatacommunities.org/id/metropolitan-district-council/wolverhampton","21/05/2015","Financial Services","MERCER LIMITED","Services - Professional Fees","3,600.00","0","6012"
"Wolverhampton City Council","http://opendatacommunities.org/id/metropolitan-district-council/wolverhampton","21/05/2015","Governance","Birmingham City Council","Comms - Postage","7,970.35","0","9399"
"Wolverhampton City Council","http://opendatacommunities.org/id/metropolitan-district-council/wolverhampton","21/07/2015","Investment - Revenue","HYMANS ROBERTSON LLP","Services - Professional Fees","5,833.00","0","6012"
"Wolverhampton City Council","http://opendatacommunities.org/id/metropolitan-district-council/wolverhampton","21/09/2015","Pension Operations","NEOPOST LIMITED","Comms - Postage","1,183.27","0","5111"
"Wolverhampton City Council","http://opendatacommunities.org/id/metropolitan-district-council/wolverhampton","21/09/2015","Governance","Kaizen Consultants","Stationery","645","0","2741"
"Wolverhampton City Council","http://opendatacommunities.org/id/metropolitan-district-council/wolverhampton","21/09/2015","Investment - Revenue","Portfolio Evalutaion Limited","Services - Professional Fees","5,287.50","0","8999"
"Wolverhampton City Council","http://opendatacommunities.org/id/metropolitan-district-council/wolverhampton","21/09/2015","Pension Operations","Pension Management Institute","Training Expenses","970","0","8299"
"Wolverhampton City Council","http://opendatacommunities.org/id/metropolitan-district-council/wolverhampton","22/04/2015","Property and legal fees","SQUIRE,SANDERS & DEMPSEY (UK) LLP","Property Management - Legal Expenses","15,091.48","0","8111"
"Wolverhampton City Council","http://opendatacommunities.org/id/metropolitan-district-council/wolverhampton","22/06/2015","Pension Operations","SCC","Computing - Purchase of Hardware","545.9","0","5072"
"Wolverhampton City Council","http://opendatacommunities.org/id/metropolitan-district-council/wolverhampton","22/07/2015","Governance","KRCS GROUP PLC","Computing - Purchase of Hardware","10,415.00","0","5072"
"Wolverhampton City Council","http://opendatacommunities.org/id/metropolitan-district-council/wolverhampton","23/06/2015","Property and legal fees","SGH MARTINEAU LLP","Property Management - Legal Expenses","52,815.16","0","8111"
"Wolverhampton City Council","http://opendatacommunities.org/id/metropolitan-district-council/wolverhampton","23/06/2015","Governance","Thompson Group Services","R&M - Departmental planned (external)","570","0","7399"
"Wolverhampton City Council","http://opendatacommunities.org/id/metropolitan-district-council/wolverhampton","23/06/2015","Governance","WaterCoolers Direct.com Ltd","Water Charges","1,895.00","0","7299"
"Wolverhampton City Council","http://opendatacommunities.org/id/metropolitan-district-council/wolverhampton","23/07/2015","Governance","ADARE LTD","Comms - Postage","60,614.98","0","4812"
"Wolverhampton City Council","http://opendatacommunities.org/id/metropolitan-district-council/wolverhampton","23/07/2015","Investments Fund Account","LONDON STOCK EXCHANGE PLC","Services - General Licences","548.49","0","6012"
"Wolverhampton City Council","http://opendatacommunities.org/id/metropolitan-district-council/wolverhampton","23/07/2015","Financial Services","MERCER LIMITED","Services - Professional Fees","64,561.00","0","6012"
"Wolverhampton City Council","http://opendatacommunities.org/id/metropolitan-district-council/wolverhampton","23/07/2015","Pension Operations","SF Recruitment Ltd","Agency Staff","511.71","0","7361"
"Wolverhampton City Council","http://opendatacommunities.org/id/metropolitan-district-council/wolverhampton","23/09/2015","Governance","ROYAL MAIL GROUP PLC","Comms - Postage","588.04","0","9402"
"Wolverhampton City Council","http://opendatacommunities.org/id/metropolitan-district-council/wolverhampton","23/09/2015","Property and legal fees","Maclay Murray & Spens LLP","Services - Professional Fees","18,021.50","0","8111"
"Wolverhampton City Council","http://opendatacommunities.org/id/metropolitan-district-council/wolverhampton","24/04/2015","Governance","Fire Risk Management Services","Services - Consultants","700","0","8999"
"Wolverhampton City Council","http://opendatacommunities.org/id/metropolitan-district-council/wolverhampton","24/04/2015","Pension Operations","Yoo","Agency Staff","8,396.87","0","8999"
"Wolverhampton City Council","http://opendatacommunities.org/id/metropolitan-district-council/wolverhampton","24/04/2015","Pension Operations","CIVICA UK LIMITED","Computing - Maint Agreements","1,000.00","0","5045"
"Wolverhampton City Council","http://opendatacommunities.org/id/metropolitan-district-council/wolverhampton","24/07/2015","Investment - Revenue","HSBC BANK PLC/HSBC SECURITY SERVICES","Services - Professional Fees","2,379.76","0","6012"
"Wolverhampton City Council","http://opendatacommunities.org/id/metropolitan-district-council/wolverhampton","27/04/2015","Investment - Revenue","HSBC BANK PLC/HSBC SECURITY SERVICES","Services - Professional Fees","2,658.33","0","6012"
"Wolverhampton City Council","http://opendatacommunities.org/id/metropolitan-district-council/wolverhampton","27/04/2015","Investment - Revenue","HYMANS ROBERTSON LLP","Services - Professional Fees","5,318.00","0","6012"
"Wolverhampton City Council","http://opendatacommunities.org/id/metropolitan-district-council/wolverhampton","27/04/2015","Pension Operations","KONICA MINOLTA BUS.SOLUTIONS(UK)LTD.","Printing","994.62","0","2741"
"Wolverhampton City Council","http://opendatacommunities.org/id/metropolitan-district-council/wolverhampton","27/04/2015","Investment - Revenue","Pinsent Masons","Services - Professional Fees","5,814.50","0","8111"
"Wolverhampton City Council","http://opendatacommunities.org/id/metropolitan-district-council/wolverhampton","27/04/2015","Financial Services","Norfolk County Council","Services - Professional Fees","2,000.00","0","8299"
"Wolverhampton City Council","http://opendatacommunities.org/id/metropolitan-district-council/wolverhampton","27/04/2015","Property and legal fees","Mourant Ozannes","Property Management - Management Expenses","12,879.00","0","8999"
"Wolverhampton City Council","http://opendatacommunities.org/id/metropolitan-district-council/wolverhampton","28/04/2015","Financial Services","Action for Blind People","Services - Professional Fees","820","0","8999"
"Wolverhampton City Council","http://opendatacommunities.org/id/metropolitan-district-council/wolverhampton","28/04/2015","Pension Operations","THINKING SOFTWARE LTD","Computing - Maint Agreements","575","0","5045"
"Wolverhampton City Council","http://opendatacommunities.org/id/metropolitan-district-council/wolverhampton","28/04/2015","Governance","DTZ DTL LTD CLIENT AC:COMMONRECEIPTS","Parking Fees","14,432.22","0","7523"
"Wolverhampton City Council","http://opendatacommunities.org/id/metropolitan-district-council/wolverhampton","28/05/2015","Financial Services","Kaplan Financial","Training Expenses","1,420.66","0","8299"
"Wolverhampton City Council","http://opendatacommunities.org/id/metropolitan-district-council/wolverhampton","28/07/2015","Pension Operations","LexisNexis","Computing - Maint Agreements","2,760.00","0","5045"
"Wolverhampton City Council","http://opendatacommunities.org/id/metropolitan-district-council/wolverhampton","29/04/2015","Investment - Revenue","Portfolio Evaluation Limited","Services - Professional Fees","4,076.70","0","8999"
"Wolverhampton City Council","http://opendatacommunities.org/id/metropolitan-district-council/wolverhampton","29/04/2015","Property and legal fees","JOHN FENDER CONSULTANCY LIMITED","Property Management - Management Expenses","8,404.18","0","7392"
"Wolverhampton City Council","http://opendatacommunities.org/id/metropolitan-district-council/wolverhampton","29/09/2015","Investments Fund Account","LINEDATA LIMITED","Computing - Maint Agreements","63,093.16","0","5045"
"Wolverhampton City Council","http://opendatacommunities.org/id/metropolitan-district-council/wolverhampton","29/09/2015","Pension Operations","UK MAIL LTD/BUSINESSPOST INTERNATNL.","Comms - Postage","729.75","0","4215"
"Wolverhampton City Council","http://opendatacommunities.org/id/metropolitan-district-council/wolverhampton","30/06/2015","Pension Operations","BIRMINGHAM CITY COUNCIL","Comms - Postage","3,807.21","0","9399"
"Wolverhampton City Council","http://opendatacommunities.org/id/metropolitan-district-council/wolverhampton","30/06/2015","Investment - Revenue","KPMG LLP FEES ACCOUNT","Services - Professional Fees","23,700.00","0","8999"
"Wolverhampton City Council","http://opendatacommunities.org/id/metropolitan-district-council/wolverhampton","30/06/2015","Governance","Kaizen Consultants","Printing","1,290.00","0","2741"
"Wolverhampton City Council","http://opendatacommunities.org/id/metropolitan-district-council/wolverhampton","30/07/2015","Executive","Financial Reporting Council","Subscriptions","6,663.76","0","8999"
